fUSD/lending_fUSD_20241119
["ID","MTS","AMOUNT","RATE_DAILY","PERIOD"]
[342579815,1731977432410,-500.0,9.896e-05,2]
[342579816,1731977432421,-500.0,9.896e-05,2]
[342579817,1731977432430,-500.0,9.896e-05,2]
[342579818,1731977432439,-500.0,9.896e-05,2]
[342579819,1731977432448,-500.0,9.896e-05,2]
[342579820,1731977432457,-500.0,9.896e-05,2]
[342579821,1731977432466,-500.0,9.896e-05,2]
[342579822,1731977432476,-220.72289253,9.896e-05,2]
[342579823,1731977432485,-400.12,9.896e-05,2]
[342579824,1731977432494,-500.0,9.896e-05,2]
[342579825,1731977432502,-500.0,9.896e-05,2]
[342579826,1731977432512,-500.0,9.896e-05,2]
[342579827,1731977432521,-500.0,9.896e-05,2]
[342579828,1731977432530,-500.0,9.896e-05,2]
[342579829,1731977432539,-500.0,9.896e-05,2]
[342579830,1731977432548,-1513.864,9.897e-05,2]
[342579831,1731977432557,-296.453207,9.9e-05,2]
[342579832,1731977432566,-6108.1754,9.9e-05,2]
[342579833,1731977432577,-3353.7619,9.9e-05,2]
[342579834,1731977432586,-2981.3362,9.9e-05,2]
[342579835,1731977432596,-500.0,9.987e-05,2]
[342579836,1731977432607,-500.0,9.987e-05,2]
[342579837,1731977432617,-500.0,9.987e-05,2]
[342579838,1731977432626,-319.36,9.987e-05,2]
[342579839,1731977432635,-500.0,9.987e-05,2]
[342579840,1731977432644,-510.1,9.987e-05,2]
[342579841,1731977432654,-500.0,9.987e-05,2]
[342579842,1731977432663,-500.0,9.987e-05,2]
[342579843,1731977432672,-500.0,9.987e-05,2]
[342579844,1731977432682,-500.0,9.987e-05,2]
[342579845,1731977432691,-500.0,9.987e-05,2]
[342579846,1731977432700,-500.0,9.987e-05,2]
[342579847,1731977432709,-500.0,9.987e-05,2]
[342579848,1731977432718,-500.0,9.987e-05,2]
[342579849,1731977432727,-500.0,9.987e-05,2]
[342579850,1731977432736,-500.0,9.987e-05,2]
[342579851,1731977432745,-500.0,9.987e-05,2]
[342579852,1731977432754,-646.26,9.987e-05,2]
[342579853,1731977432763,-500.0,9.987e-05,2]
[342579854,1731977432772,-500.0,9.987e-05,2]
[342579855,1731977432781,-500.0,9.987e-05,2]
[342579856,1731977432790,-636.37,9.987e-05,2]
[342579857,1731977432799,-500.0,9.987e-05,2]
[342579858,1731977432807,-500.0,9.987e-05,2]
[342579859,1731977432816,-500.0,9.988e-05,2]
[342579860,1731977432825,-500.0,9.988e-05,2]
[342579861,1731977432834,-249.13,9.988e-05,2]
[342579862,1731977432843,-402.30175003,9.988e-05,2]
[342579863,1731977432854,-500.0,9.988e-05,2]
[342579864,1731977432864,-500.0,9.988e-05,2]
[342579865,1731977432873,-500.0,9.988e-05,2]
[342579866,1731977432883,-500.0,9.988e-05,2]
[342579867,1731977432892,-500.0,9.988e-05,2]
[342579868,1731977432901,-500.0,9.988e-05,2]
[342579869,1731977432910,-500.0,9.988e-05,2]
[342579870,1731977432919,-500.0,9.988e-05,2]
[342579871,1731977432928,-500.0,9.988e-05,2]
[342579872,1731977432937,-500.0,9.988e-05,2]
[342579873,1731977432946,-500.0,9.988e-05,2]
[342579874,1731977432955,-500.0,9.988e-05,2]
[342579875,1731977432964,-500.0,9.988e-05,2]
[342579876,1731977432973,-500.0,9.988e-05,2]
[342579877,1731977432983,-1500.0,9.989e-05,2]
[342579878,1731977432992,-500.0,9.989e-05,2]
[342579879,1731977433001,-500.0,9.989e-05,2]
[342579880,1731977433010,-500.0,9.989e-05,2]
[342579881,1731977433019,-500.0,9.989e-05,2]
[342579882,1731977433029,-500.0,9.989e-05,2]
[342579883,1731977433038,-500.0,9.989e-05,2]
[342579884,1731977433048,-500.0,9.989e-05,2]
[342579885,1731977433057,-500.0,9.989e-05,2]
[342579886,1731977433067,-500.0,9.989e-05,2]
[342579887,1731977433076,-500.0,9.989e-05,2]
[342579888,1731977433086,-500.0,9.989e-05,2]
[342579889,1731977433095,-507.95,9.989e-05,2]
[342579890,1731977433107,-500.0,9.989e-05,2]
[342579891,1731977433116,-439.95,9.989e-05,2]
[342579892,1731977433125,-500.0,9.989e-05,2]
[342579893,1731977433135,-1045.85,9.99e-05,2]
[342579894,1731977433144,-500.0,9.997e-05,2]
[342579895,1731977433154,-223.1,9.997e-05,2]
[342579896,1731977433163,-500.0,9.997e-05,2]
[342579897,1731977433175,-500.0,9.997e-05,2]
[342579898,1731977433187,-500.0,9.998e-05,2]
[342579899,1731977433198,-500.0,9.998e-05,2]
[342579900,1731977433209,-500.0,9.998e-05,2]
[342579901,1731977433218,-605.81,9.998e-05,2]
[342579902,1731977433228,-1098.00813129,9.999e-05,2]
[342579903,1731977433237,-500.0,9.999e-05,2]
[342579904,1731977433246,-500.0,9.999e-05,2]
[342579905,1731977433255,-500.0,9.999e-05,2]
[342579906,1731977433264,-500.0,9.999e-05,2]
[342579907,1731977433274,-500.0,9.999e-05,2]
[342579908,1731977433283,-500.0,9.999e-05,2]
[342579909,1731977433292,-500.0,9.999e-05,2]
[342579910,1731977433301,-500.0,9.999e-05,2]
[342579911,1731977433311,-500.0,9.999e-05,2]
[342579912,1731977433321,-500.0,9.999e-05,2]
[342579913,1731977433330,-500.0,9.999e-05,2]
[342579914,1731977433342,-532.76,9.999e-05,2]
[342579915,1731977433353,-500.0,9.999e-05,2]
[342579916,1731977433362,-500.0,9.999e-05,2]
[342579917,1731977433371,-500.0,9.999e-05,2]
[342579918,1731977433380,-500.0,9.999e-05,2]
[342579919,1731977433390,-549.5,9.999e-05,2]
[342579920,1731977433399,-500.0,9.999e-05,2]
[342579921,1731977433408,-500.0,9.999e-05,2]
[342579922,1731977433421,-500.0,9.999e-05,2]
[342579923,1731977433431,-500.0,9.999e-05,2]
[342579924,1731977433440,-353.2,9.999e-05,2]
[342579925,1731977433450,-500.0,9.999e-05,2]
[342579926,1731977433459,-197.57890153,9.999e-05,2]
[342579927,1731977433469,-500.0,9.999e-05,2]
[342579928,1731977433478,-500.0,9.999e-05,2]
[342579929,1731977433487,-500.0,9.999e-05,2]
[342579930,1731977433496,-500.0,9.999e-05,2]
[342579931,1731977433507,-500.0,9.999e-05,2]
[342579932,1731977433516,-500.0,9.999e-05,2]
[342579933,1731977433526,-291.50542213,9.999e-05,2]
[342579934,1731977433535,-500.0,9.999e-05,2]
[342579935,1731977433545,-500.0,9.999e-05,2]
[342579936,1731977433554,-500.0,9.999e-05,2]
[342579937,1731977433563,-500.0,9.999e-05,2]
[342579938,1731977433573,-500.0,9.999e-05,2]
[342579939,1731977433582,-500.0,9.999e-05,2]
[342579940,1731977433592,-218.28,9.999e-05,2]
[342579941,1731977433602,-500.0,9.999e-05,2]
[342579942,1731977433611,-500.0,9.999e-05,2]
[342579943,1731977433620,-500.0,9.999e-05,2]
[342579944,1731977433630,-500.0,9.999e-05,2]
[342579945,1731977433639,-529.92915608,9.999e-05,2]
[342579946,1731977433648,-500.0,9.999e-05,2]
[342579947,1731977433658,-500.0,9.999e-05,2]
[342579948,1731977433667,-500.0,9.999e-05,2]
[342579949,1731977433676,-500.0,9.999e-05,2]
[342579950,1731977433685,-500.0,9.999e-05,2]
[342579951,1731977433695,-500.0,9.999e-05,2]
[342579952,1731977433704,-500.0,9.999e-05,2]
[342579953,1731977433713,-500.0,9.999e-05,2]
[342579954,1731977433723,-500.0,9.999e-05,2]
[342579955,1731977433732,-500.0,9.999e-05,2]
[342579956,1731977433741,-500.0,9.999e-05,2]
[342579957,1731977433750,-500.0,9.999e-05,2]
[342579958,1731977433759,-500.0,9.999e-05,2]
[342579959,1731977433769,-500.0,9.999e-05,2]
[342579960,1731977433778,-500.0,9.999e-05,2]
[342579961,1731977433787,-501.12323388,9.999e-05,2]
[342579962,1731977433796,-500.0,9.999e-05,2]
[342579963,1731977433806,-500.0,9.999e-05,2]
[342579964,1731977433815,-500.0,9.999e-05,2]
[342579965,1731977433825,-500.0,9.999e-05,2]
[342579966,1731977433834,-500.0,9.999e-05,2]
[342579967,1731977433843,-500.0,9.999e-05,2]
[342579968,1731977433853,-500.0,9.999e-05,2]
[342579969,1731977433863,-500.0,9.999e-05,2]
[342579970,1731977433873,-500.0,9.999e-05,2]
[342579971,1731977433883,-500.0,9.999e-05,2]
[342579972,1731977433894,-500.0,9.999e-05,2]
[342579973,1731977433903,-500.0,9.999e-05,2]
[342579974,1731977433913,-500.0,9.999e-05,2]
[342579975,1731977433922,-500.0,9.999e-05,2]
[342579976,1731977433932,-500.0,9.999e-05,2]
[342579977,1731977433942,-500.0,9.999e-05,2]
[342579978,1731977433953,-500.0,9.999e-05,2]
[342579979,1731977433963,-500.0,9.999e-05,2]
[342579980,1731977433972,-500.0,9.999e-05,2]
[342579981,1731977433982,-500.0,9.999e-05,2]
[342579982,1731977433991,-492.04,9.999e-05,2]
[342579983,1731977434000,-500.0,9.999e-05,2]
[342579984,1731977434010,-500.0,9.999e-05,2]
[342579985,1731977434019,-500.0,9.999e-05,2]
[342579986,1731977434029,-574.26,9.999e-05,2]
[342579987,1731977434039,-500.0,9.999e-05,2]
[342579988,1731977434049,-500.0,9.999e-05,2]
[342579989,1731977434058,-500.0,9.999e-05,2]
[342579990,1731977434068,-500.0,9.999e-05,2]
[342579991,1731977434077,-500.0,9.999e-05,2]
[342579992,1731977434087,-500.0,9.999e-05,2]
[342579993,1731977434097,-500.0,9.999e-05,2]
[342579994,1731977434109,-500.0,9.999e-05,2]
[342579995,1731977434122,-500.0,9.999e-05,2]
[342579996,1731977434131,-500.0,9.999e-05,2]
[342579997,1731977434140,-500.0,9.999e-05,2]
[342579998,1731977434150,-500.0,9.999e-05,2]
[342579999,1731977434159,-500.0,9.999e-05,2]
[342580000,1731977434168,-500.0,9.999e-05,2]
[342580001,1731977434177,-500.0,9.999e-05,2]
[342580002,1731977434187,-500.0,9.999e-05,2]
[342580003,1731977434196,-500.0,9.999e-05,2]
[342580004,1731977434205,-500.0,9.999e-05,2]
[342580005,1731977434215,-500.0,9.999e-05,2]
[342580006,1731977434225,-500.0,9.999e-05,2]
[342580007,1731977434235,-546.84,9.999e-05,2]
[342580008,1731977434245,-500.0,9.999e-05,2]
[342580009,1731977434255,-500.0,9.999e-05,2]
[342580010,1731977434265,-253.18,9.999e-05,2]
[342580011,1731977434274,-500.0,9.999e-05,2]
[342580012,1731977434284,-500.0,9.999e-05,2]
[342580013,1731977434294,-500.0,9.999e-05,2]
[342580014,1731977434304,-370.08,9.999e-05,2]
[342580015,1731977434313,-500.0,9.999e-05,2]
[342580016,1731977434323,-500.0,9.999e-05,2]
[342580017,1731977434333,-500.0,9.999e-05,2]
[342580018,1731977434345,-446.95,9.999e-05,2]
[342580019,1731977434357,-306.86699652,9.999e-05,2]
[342580020,1731977434366,-500.0,9.999e-05,2]
[342580021,1731977434375,-500.0,9.999e-05,2]
[342580022,1731977434387,-386.67,9.999e-05,2]
[342580023,1731977434397,-422.75915143,9.999e-05,2]
[342580024,1731977434407,-811.74,9.999e-05,2]
[342580025,1731977434417,-811.74,9.999e-05,2]
[342580026,1731977434426,-811.74,9.999e-05,2]
[342580027,1731977434436,-811.74,9.999e-05,2]
[342580028,1731977434445,-811.74,9.999e-05,2]
[342580029,1731977434455,-811.74,9.999e-05,2]
[342580030,1731977434465,-811.74,9.999e-05,2]
[342580031,1731977434474,-811.74,9.999e-05,2]
[342580032,1731977434484,-811.74,9.999e-05,2]
[342580033,1731977434493,-811.74,9.999e-05,2]
[342580034,1731977434502,-811.74,9.999e-05,2]
[342580035,1731977434511,-811.74,9.999e-05,2]
[342580036,1731977434521,-811.74,9.999e-05,2]
[342580037,1731977434530,-811.74,9.999e-05,2]
[342580038,1731977434539,-811.74,9.999e-05,2]
[342580039,1731977434548,-811.74,9.999e-05,2]
[342580040,1731977434557,-811.74,9.999e-05,2]
[342580041,1731977434566,-811.74,9.999e-05,2]
[342580042,1731977434575,-811.74,9.999e-05,2]
[342580043,1731977434585,-811.74,9.999e-05,2]
[342580044,1731977434594,-811.74,9.999e-05,2]
[342580045,1731977434606,-811.74,9.999e-05,2]
[342580046,1731977434616,-811.74,9.999e-05,2]
[342580047,1731977434625,-811.91003912,9.999e-05,2]
[342580048,1731977434634,-500.0,9.999e-05,2]
[342580049,1731977434643,-500.0,9.999e-05,2]
[342580050,1731977434652,-500.0,9.999e-05,2]
[342580051,1731977434661,-343.2,9.999e-05,2]
[342580052,1731977434670,-500.0,9.999e-05,2]
[342580053,1731977434679,-500.0,9.999e-05,2]
[342580054,1731977434688,-500.0,9.999e-05,2]
[342580055,1731977434698,-500.0,9.999e-05,2]
[342580056,1731977434707,-162.6,9.999e-05,2]
[342580057,1731977434716,-500.0,9.999e-05,2]
[342580058,1731977434725,-188.05,9.999e-05,2]
[342580059,1731977434734,-500.0,9.999e-05,2]
[342580060,1731977434744,-158.52828819,9.999e-05,2]
[342580061,1731977434753,-500.0,9.999e-05,2]
[342580062,1731977434764,-500.0,9.999e-05,2]
[342580063,1731977434773,-500.0,9.999e-05,2]
[342580064,1731977434786,-218.71,9.999e-05,2]
[342580065,1731977434795,-500.0,9.999e-05,2]
[342580066,1731977434804,-500.0,9.999e-05,2]
[342580067,1731977434814,-500.0,9.999e-05,2]
[342580068,1731977434823,-500.0,9.999e-05,2]
[342580069,1731977434833,-456.21542249,9.999e-05,2]
[342580070,1731977434843,-500.0,9.999e-05,2]
[342580071,1731977434853,-500.0,9.999e-05,2]
[342580072,1731977434863,-323.06,9.999e-05,2]
[342580073,1731977434872,-500.0,9.999e-05,2]
[342580074,1731977434882,-500.0,9.999e-05,2]
[342580075,1731977434891,-500.0,9.999e-05,2]
[342580076,1731977434901,-500.0,9.999e-05,2]
[342580077,1731977434911,-500.0,9.999e-05,2]
[342580078,1731977434920,-184.25,9.999e-05,2]
[342580079,1731977434930,-482.34019395,9.999e-05,2]
[342580080,1731977434939,-238.67892206,9.999e-05,2]
[342580081,1731977434949,-185.44682504,9.999e-05,2]
[342580082,1731977434959,-500.0,9.999e-05,2]
[342580083,1731977434969,-500.0,9.999e-05,2]
[342580084,1731977434979,-1256.0,0.0001,2]
[342580085,1731977434989,-564.0,0.0001,2]
[342580086,1731977434999,-150.0,0.0001,2]
[342580087,1731977435008,-1993.0,0.0001,2]
[342580088,1731977435018,-1054.522,0.0001,2]
[342580089,1731977435027,-1431.819,0.0001,2]
[342580090,1731977435036,-814.0,0.0001,2]
[342580091,1731977435046,-3446.0,0.0001,2]
[342580092,1731977435055,-920.0,0.0001,2]
[342580093,1731977435065,-1157.0,0.0001,2]
[342580094,1731977435074,-5937.0,0.0001,2]
[342580095,1731977435082,-13629.0,0.0001,2]
[342580096,1731977435093,-150.0,0.0001,2]
[342580097,1731977435104,-166.0,0.0001,2]
[342580098,1731977435113,-6312.96047487,0.0001,2]
[342580099,1731977435121,-12144.30143184,0.0001,2]
[342580100,1731977435149,-5804.56181187,0.0001,2]
[342580101,1731977435161,-8544.6295,0.0001,2]
[342580102,1731977435171,-19195.804235,0.0001,2]
[342580103,1731977435184,-2687.72843542,0.0001,2]
[342580104,1731977435195,-1906.48754834,0.0001,2]
[342580105,1731977435206,-578.530001,0.0001,2]
[342580106,1731977435232,-1039.14973622,0.0001,2]
[342580107,1731977435244,-59864.00000121,0.0001,2]
[342580108,1731977435255,-504.35,0.0001,2]
[342580109,1731977435266,-529.17,0.0001,2]
[342580110,1731977437716,-306.23,0.0001,2]
[342580111,1731977437726,-148157.31414939,0.0001,2]
[342580112,1731977437735,-1398.85727918,0.0001,2]
[342580113,1731977437746,-1398.85727915,0.0001,2]
[342580114,1731977437757,-1398.85727915,0.0001,2]
[342580115,1731977437766,-1398.85727915,0.0001,2]
[342580116,1731977437775,-1398.85727915,0.0001,2]
[342580117,1731977437786,-1398.85727915,0.0001,2]
[342580118,1731977437799,-1398.85727915,0.0001,2]
[342580119,1731977437810,-1398.85727915,0.0001,2]
[342580120,1731977437821,-1398.85727915,0.0001,2]
[342580121,1731977437832,-6326597.11242448,0.0001,2]
[342580122,1731977437843,-4989.97334439,0.0001,2]
[342580123,1731977437856,-8011.28309462,0.0001,2]
[342580124,1731977437867,-592.37453589,0.0001,2]
[342580125,1731977438063,-970.1388021,0.0001,2]
[342580126,1731977438091,-838.12231162,0.0001,2]
[342580151,1731977439867,-7763.58197,0.0001,2]
[342580152,1731977439924,-962.97937777,0.0001,2]
[342580153,1731977439938,-4862.60451454,0.0001,2]
[342580154,1731977439951,-2268.0481421,0.0001,2]
[342580155,1731977439965,-634.55684481,0.0001,2]
[342580226,1731977442791,-1954.60022167,0.0001,2]
[342580227,1731977442959,-7303.04108373,0.0001,2]
[342580228,1731977442971,-9097.1,0.0001,2]
[342580229,1731977443018,-2996.95197003,0.0001,2]
[342580231,1731977443029,-2998.34304151,0.0001,2]
[342580232,1731977443041,-2476.0472255,0.0001,2]
[342580239,1731977445699,-500.0,9.999e-05,2]
[342580240,1731977445709,-200.0,0.0001,2]
[342580241,1731977445718,-9236.50503976,0.0001,2]
[342580242,1731977445732,-181823.32989062,0.0001,2]
[342580243,1731977445759,-500.0,9.999e-05,2]
[342580244,1731977445769,-36.74208296,0.0001,2]
[342580245,1731977445929,-2951.47949907,0.0001,2]
[342580246,1731977842632,339.98,8.219e-05,2]
[342580254,1731978349338,-250.0,8.915e-05,2]
[342580255,1731978349370,-559.25,9.175e-05,2]
[342580256,1731978349423,-194.318127,9.563e-05,2]
[342580257,1731978349512,-2828.600161,9.563e-05,2]
[342580258,1731978349558,-1000.0,9.672e-05,2]
[342580259,1731978349582,-300.0,9.682e-05,2]
[342580260,1731978349605,-2828.600161,9.683e-05,2]
[342580261,1731978349628,-2828.600161,9.802e-05,2]
[342580262,1731978349655,-150.0,9.81e-05,2]
[342580263,1731978349678,-1000.0,9.9e-05,2]
[342580264,1731978349709,-762.38,9.9e-05,2]
[342580265,1731978349733,-150.0,9.9e-05,2]
[342580266,1731978349755,-150.0,9.9e-05,2]
[342580267,1731978349777,-150.0,9.9e-05,2]
[342580268,1731978349800,-150.0,9.9e-05,2]
[342580269,1731978349823,-2828.600161,9.922e-05,2]
[342580270,1731978349846,-836.68,9.998e-05,2]
[342580271,1731978349869,-150.0,9.998e-05,2]
[342580272,1731978349891,-500.0,9.999e-05,2]
[342580273,1731978349914,-500.0,9.999e-05,2]
[342580274,1731978350388,-500.0,9.999e-05,2]
[342580275,1731978350412,-500.0,9.999e-05,2]
[342580276,1731978350436,-500.0,9.999e-05,2]
[342580277,1731978350456,-500.0,9.999e-05,2]
[342580278,1731978350479,-500.0,9.999e-05,2]
[342580279,1731978350503,-500.0,9.999e-05,2]
[342580280,1731978350525,-500.0,9.999e-05,2]
[342580281,1731978350547,-371.76,9.999e-05,2]
[342580282,1731978350568,-500.0,9.999e-05,2]
[342580283,1731978350588,-500.0,9.999e-05,2]
[342580284,1731978350610,-500.0,9.999e-05,2]
[342580285,1731978350634,-500.0,9.999e-05,2]
[342580286,1731978350660,-500.0,9.999e-05,2]
[342580287,1731978350683,-500.0,9.999e-05,2]
[342580288,1731978350704,-500.0,9.999e-05,2]
[342580289,1731978350729,-500.0,9.999e-05,2]
[342580290,1731978350751,-500.0,9.999e-05,2]
[342580291,1731978350774,-304.54,9.999e-05,2]
[342580292,1731978350796,-165.36,9.999e-05,2]
[342580293,1731978350819,-500.0,9.999e-05,2]
[342580294,1731978350841,-500.0,9.999e-05,2]
[342580295,1731978350861,-500.0,9.999e-05,2]
[342580296,1731978350881,-500.0,9.999e-05,2]
[342580297,1731978350901,-500.0,9.999e-05,2]
[342580298,1731978350922,-500.0,9.999e-05,2]
[342580299,1731978350943,-536.96452883,9.999e-05,2]
[342580300,1731978350963,-500.0,9.999e-05,2]
[342580301,1731978350986,-500.0,9.999e-05,2]
[342580302,1731978351009,-500.0,9.999e-05,2]
[342580303,1731978351031,-500.0,9.999e-05,2]
[342580304,1731978351052,-500.0,9.999e-05,2]
[342580305,1731978351073,-500.0,9.999e-05,2]
[342580306,1731978351093,-500.0,9.999e-05,2]
[342580307,1731978351113,-500.0,9.999e-05,2]
[342580308,1731978351134,-500.0,9.999e-05,2]
[342580309,1731978351155,-500.0,9.999e-05,2]
[342580310,1731978351175,-500.0,9.999e-05,2]
[342580311,1731978351196,-500.0,9.999e-05,2]
[342580312,1731978351217,-500.0,9.999e-05,2]
[342580313,1731978351238,-500.0,9.999e-05,2]
[342580314,1731978351258,-500.0,9.999e-05,2]
[342580315,1731978351279,-500.0,9.999e-05,2]
[342580316,1731978351299,-500.0,9.999e-05,2]
[342580317,1731978351319,-500.0,9.999e-05,2]
[342580318,1731978351339,-500.0,9.999e-05,2]
[342580319,1731978351360,-500.0,9.999e-05,2]
[342580320,1731978351380,-500.0,9.999e-05,2]
[342580321,1731978351401,-500.0,9.999e-05,2]
[342580322,1731978351421,-419.34670017,9.999e-05,2]
[342580323,1731978360972,500.0,0.000121,10]
[342580356,1731978631821,-1000.0,9.704e-05,2]
[342580357,1731978631831,-300.0,9.998e-05,2]
[342580358,1731978631841,-152.36,9.999e-05,2]
[342580359,1731978631851,-500.0,9.999e-05,7]
[342580360,1731978631861,-500.0,9.999e-05,7]
[342580361,1731978631871,-500.0,9.999e-05,7]
[342580362,1731978631879,-500.0,9.999e-05,7]
[342580363,1731978631888,-500.0,9.999e-05,7]
[342580364,1731978631899,-500.0,9.999e-05,7]
[342580365,1731978631909,-500.0,9.999e-05,7]
[342580366,1731978631918,-500.0,9.999e-05,7]
[342580367,1731978631928,-500.0,9.999e-05,7]
[342580368,1731978631939,-500.0,9.999e-05,2]
[342580369,1731978631948,-500.0,9.999e-05,7]
[342580370,1731978631958,-500.0,9.999e-05,7]
[342580371,1731978631968,-500.0,9.999e-05,7]
[342580372,1731978631977,-500.0,9.999e-05,7]
[342580373,1731978631987,-500.0,9.999e-05,7]
[342580374,1731978631996,-500.0,9.999e-05,7]
[342580375,1731978632006,-500.0,9.999e-05,7]
[342580376,1731978632015,-500.0,9.999e-05,7]
[342580377,1731978632025,-500.0,9.999e-05,7]
[342580378,1731978632035,-500.0,9.999e-05,7]
[342580379,1731978632044,-500.0,9.999e-05,7]
[342580380,1731978632053,-500.0,9.999e-05,7]
[342580381,1731978632063,-500.0,9.999e-05,7]
[342580382,1731978632072,-500.0,9.999e-05,7]
[342580383,1731978632081,-255.86965422,9.999e-05,7]
[342580384,1731978632090,-500.0,9.999e-05,2]
[342580385,1731978632100,-500.0,9.999e-05,2]
[342580386,1731978632110,-8829.87,9.999e-05,2]
[342580387,1731978632121,-500.0,9.999e-05,2]
[342580388,1731978632130,-500.0,9.999e-05,2]
[342580389,1731978632139,-249.01,9.999e-05,2]
[342580390,1731978632149,-500.0,9.999e-05,2]
[342580391,1731978632158,-500.0,9.999e-05,2]
[342580392,1731978632168,-150.0,9.999e-05,2]
[342580393,1731978632178,-500.0,9.999e-05,2]
[342580394,1731978632190,-566.13157838,9.999e-05,2]
[342580395,1731978632200,-500.0,9.999e-05,2]
[342580396,1731978632210,-500.0,9.999e-05,2]
[342580397,1731978632220,-150.0,9.999e-05,2]
[342580398,1731978632229,-500.0,9.999e-05,2]
[342580399,1731978632239,-500.0,9.999e-05,2]
[342580400,1731978632248,-500.0,9.999e-05,2]
[342580401,1731978632257,-184.75,9.999e-05,2]
[342580402,1731978632267,-364.41143224,9.999e-05,2]
[342580403,1731978632276,-500.0,9.999e-05,2]
[342580404,1731978632285,-502.39918544,9.999e-05,2]
[342580405,1731978632295,-500.0,9.999e-05,2]
[342580406,1731978632304,-500.0,9.999e-05,2]
[342580408,1731978632314,-278.73,9.999e-05,2]
[342580411,1731978632336,-500.0,9.999e-05,2]
[342580412,1731978632345,-500.0,9.999e-05,2]
[342580414,1731978632355,-500.0,9.999e-05,2]
[342580415,1731978632364,-500.0,9.999e-05,2]
[342580416,1731978632374,-500.0,9.999e-05,2]
[342580417,1731978632383,-500.0,9.999e-05,2]
[342580418,1731978632393,-500.0,9.999e-05,2]
[342580419,1731978632403,-500.0,9.999e-05,2]
[342580420,1731978632413,-500.0,9.999e-05,2]
[342580421,1731978632423,-500.0,9.999e-05,2]
[342580422,1731978632432,-500.0,9.999e-05,2]
[342580423,1731978632442,-500.0,9.999e-05,2]
[342580424,1731978632452,-500.0,9.999e-05,2]
[342580425,1731978632461,-325.2,9.999e-05,2]
[342580426,1731978632470,-500.0,9.999e-05,2]
[342580427,1731978632479,-500.0,9.999e-05,2]
[342580428,1731978632489,-500.0,9.999e-05,2]
[342580429,1731978632498,-500.0,9.999e-05,2]
[342580430,1731978632508,-500.0,9.999e-05,2]
[342580431,1731978632517,-500.0,9.999e-05,2]
[342580432,1731978632526,-486.51071279,9.999e-05,2]
[342580433,1731978632536,-500.0,9.999e-05,2]
[342580434,1731978632545,-500.0,9.999e-05,2]
[342580435,1731978632557,-526.12,9.999e-05,2]
[342580436,1731978632566,-500.0,9.999e-05,2]
[342580437,1731978632575,-500.0,9.999e-05,2]
[342580438,1731978632584,-500.0,9.999e-05,2]
[342580439,1731978632593,-628.17,9.999e-05,2]
[342580440,1731978632603,-500.0,9.999e-05,2]
[342580441,1731978632612,-500.0,9.999e-05,2]
[342580442,1731978632622,-500.0,9.999e-05,2]
[342580443,1731978632631,-500.0,9.999e-05,2]
[342580444,1731978632640,-500.0,9.999e-05,2]
[342580445,1731978632650,-500.0,9.999e-05,2]
[342580446,1731978632660,-406.62,9.999e-05,2]
[342580447,1731978632670,-500.0,9.999e-05,2]
[342580448,1731978632680,-500.0,9.999e-05,2]
[342580449,1731978632690,-500.0,9.999e-05,2]
[342580450,1731978632699,-500.0,9.999e-05,2]
[342580451,1731978632709,-500.0,9.999e-05,2]
[342580452,1731978632721,-210.74561477,9.999e-05,2]
[342580453,1731978632730,-500.0,9.999e-05,2]
[342580454,1731978632739,-500.0,9.999e-05,2]
[342580455,1731978632748,-500.0,9.999e-05,2]
[342580456,1731978632758,-570.04256692,9.999e-05,2]
[342580457,1731978632767,-500.0,9.999e-05,2]
[342580458,1731978632778,-500.0,9.999e-05,2]